[Event "5th Vera Menchik Memorial 2022"]
[Site "Prag"]
[Date "2022.06.05"]
[Round "5.16"]
[White "Akerman, Jan"]
[Black "Lnenickova, Gabriela"]
[Result "1/2-1/2"]
[ECO "A27"]
[WhiteElo "1524"]
[BlackElo "2146"]
[Annotator "TA"]
[PlyCount "54"]
[EventDate "2022.06.05"]
[EventType "tourn"]
[EventCountry "CZE"]
[SourceTitle "playchess.com"]
[Source "ChessBase"]
[SourceQuality "1"]
[TimeControl "720+3"]

{[%evp 9,54,49,70,55,57,2,13,15,27,-11,93,93,144,152,134,138,147,81,85,35,70,39,197,0,0,-29,-36,-68,-73,-80,-73,-97,-92,-185,-208,-239,-209,-804,-798,-1041,-1023,-29991,-375,-29992,-29993,-29996,-29997]} 1. c4 {[%emt 0:00:00]} e5 {[%emt 0:00:04]} 2. Nc3 {[%emt 0:00:02]} Nc6 {[%emt 0:00:06]} 3. Nf3 {[%emt 0:00:02]} f5 {[%emt 0:00:01]} 4. d4 {[%emt 0:00:02]} exd4 {[%emt 0:00:16]} 5. Nxd4 {[%emt 0:00:02]} Nxd4 {[%emt 0:00:04]} 6. Qxd4 {[%emt 0:00:02] A27: English Opening: Three Knights Variation.} Nf6 {[%emt 0:00:03]} 7. Qe5+ {[%emt 0:00:25]} (7. g3 $14) 7... Be7 $1 $11 {[%emt 0:00:31]} 8. Qxf5 {[%emt 0:00:03] The position is equal.} d5 {[%emt 0:00:08]} 9. Qd3 {[%emt 0:00:01][%cal Rc4d5] [#]} dxc4 $146 {[%emt 0:00:10]} (9... d4 $1 $11 10. Nd5 Nxd5 11. cxd5 Bb4+ 12. Kd1 (12. Bd2 Bxd2+ 13. Qxd2 Qxd5 $11) 12... Qxd5) ({Predecessor:} 9... d4 10. Nb5 c5 11. Bf4 O-O 12. Nc7 Rb8 13. Nb5 Ra8 14. Nc7 Rb8 15. Nd5 Nxd5 16. Bxb8 {0-1 (23) Stumpf,D (1785)-Hagenbeck Huebert,B (1744) Playchess.com INT 2020}) 10. Qxc4 $16 {[%emt 0:00:14]} Bf5 {[%emt 0:02:19]} (10... c6 $142) 11. e4 {[%emt 0:00:15][%cal Be2e4,Be4e5][%mdl 32]} Bg6 {[%emt 0:00:01]} 12. e5 {[%emt 0:00:09]} Nd7 {[%emt 0:00:34] [#]} 13. Bf4 {[%emt 0:00:03] White is more active.} ({White should try} 13. Be3 $1 {Rd1 is the strong threat.} c6 14. O-O-O) 13... Nb6 {[%emt 0:00:10]} 14. Qe2 {[%emt 0:00:36]} (14. Qb3 $16) 14... Qd4 {[%emt 0:00:23]} 15. g3 {[%emt 0:00:26]} O-O-O $2 {[%emt 0:00:10]} (15... Bb4 $1 $14 16. Qe3 (16. Rd1 Bxc3+ 17. bxc3 Qxc3+ 18. Bd2 Qc2 $14) 16... Qd5) 16. Bh3+ $2 {[%emt 0:00:12]} (16. Rd1 $18 Qb4 17. Bh3+ Kb8 18. O-O) 16... Kb8 $11 {[%emt 0:00:05]} 17. O-O {[%emt 0:00:06] And now e6 would win.} Bd3 {[%emt 0:00:14]} 18. Qf3 {[%emt 0:00:44][%cal Oe5e6] Threatens to win with e6!} Bxf1 {[%emt 0:00:13]} 19. Rxf1 {[%emt 0:00:03] [#]} g5 $1 {[%emt 0:00:19]} 20. Bg2 {[%emt 0:00:25][%csl Gg2][%cal Rf3b7]} c6 {[%emt 0:00:17]} 21. Be3 {[%emt 0:00:11]} (21. Rd1 $17 Qb4 22. Bc1) 21... Qxe5 $19 {[%emt 0:00:14]} 22. Qf7 {[%emt 0:00:53]} Bc5 {[%emt 0:01:07]} 23. Bc1 $2 {[%emt 0:00:10]} (23. Bxc5 Qxc5 24. Ne4) 23... Rhf8 {[%emt 0:00:30]} 24. Qxh7 {[%emt 0:00:47] [#]} Rxf2 $1 {[%emt 0:00:30][%mdl 512] ( -> ...Rdf8)} 25. Kh1 {[%emt 0:00:27]} (25. Qe4 Rf4+) 25... Rxf1+ {[%emt 0:00:24]} 26. Bxf1 {[%emt 0:00:00]} Qd4 {[%emt 0:00:14][%csl Gc5][%cal Rd4g1]} 27. Ne2 {[%emt 0:00:14]} Qd5+ {[%emt 0:00:28][%mdl 32768] Quite a comeback for Black.  Weighted Error Value: White=1.01/Black=0.25 (precise) . An unexpected result.} 1/2-1/2

[Event "5th Vera Menchik Memorial 2022"]
[Site "Prag"]
[Date "2022.06.05"]
[Round "6.1"]
[White "Pulpan, Jakub"]
[Black "Jirovsky, Milos"]
[Result "1/2-1/2"]
[WhiteElo "2418"]
[BlackElo "2458"]
[Annotator "TA"]
[PlyCount "28"]
[EventDate "2022.06.05"]
[EventType "tourn"]
[EventCountry "CZE"]
[SourceTitle "playchess.com"]
[Source "ChessBase"]
[SourceQuality "1"]
[TimeControl "720+3"]

{[%evp 9,15,8,21,15,8,14,15,18]} 1. Nf3 {[%emt 0:00:02]} d5 {[%emt 0:00:01]} 2. b3 {[%emt 0:00:04]} Nf6 {[%emt 0:00:08]} 3. Bb2 {[%emt 0:00:01]} g6 {[%emt 0:00:02]} 4. c4 {[%emt 0:00:06]} dxc4 {[%emt 0:00:10]} 5. bxc4 {[%emt 0:00:03]} Bg7 {[%emt 0:00:01] The position is equal.} 6. g3 {[%emt 0:00:05] A06: Réti Opening: 1 Nf3 d5.} b6 {[%emt 0:00:10]} 7. Bg2 {[%emt 0:00:04] Strongly threatening Ne5.} Bb7 {[%emt 0:00:01]} 8. O-O {[%emt 0:00:02] [#] Not much happened in this game.  Weighted Error Value: White=0.00 (flawless) /Black=0.04 (flawless)} {Predecessor:} c5 $146 9. d3 O-O 10. Nbd2 Nc6 11. Ne5 Qc7 12. a4 Nxe5 13. Bxe5 Qxe5 14. Bxb7 Rab8 {0-1 (44) Duda,J (2756)-Wojtaszek,R (2700) Bydgoszcz 2021} 1/2-1/2

[Event "5th Vera Menchik Memorial 2022"]
[Site "Prag"]
[Date "2022.06.05"]
[Round "6.2"]
[White "Sahidi, Samir"]
[Black "Plat, Vojtech"]
[Result "0-1"]
[ECO "A22"]
[WhiteElo "2459"]
[BlackElo "2547"]
[Annotator "TA"]
[PlyCount "136"]
[EventDate "2022.06.05"]
[EventType "tourn"]
[EventCountry "CZE"]
[SourceTitle "playchess.com"]
[Source "ChessBase"]
[SourceQuality "1"]
[TimeControl "720+3"]

{[%evp 11,136,15,20,27,28,9,53,37,34,41,47,56,39,37,45,50,50,34,44,33,43,0,66,18,43,33,80,35,29,41,39,30,42,-2,0,10,0,-23,-15,-131,-139,-100,-102,-172,-169,-255,-250,-242,-240,-240,-233,-246,-244,-275,-283,-245,-204,-204,-211,-341,-247,-288,-293,-277,-247,-248,-247,-350,-261,-290,-282,-272,-236,-236,-236,-218,-219,-457,-457,-556,-535,-559,-548,-534,-534,-627,-627,-620,-620,-620,-620,-1227,-1227,-1186,-1102,-1118,-1016,-1094,-1168,-1069,-1067,-976,-804,-768,-747,-1720,-1801,-1800,-2018,-1841,-1856,-1812,-1850,-1777,-1747,-1793,-1739,-1757,-1757,-1154,-810,-29974,-29977,-29986,-29987,-29984,-29985]} 1. Nf3 {[%emt 0:00:03]} d6 {[%emt 0:00:00]} 2. c4 {[%emt 0:00:06]} e5 {[%emt 0:00:02]} 3. Nc3 {[%emt 0:00:04]} Nf6 {[%emt 0:00:03]} 4. g3 {[%emt 0:00:06]} Be7 {[%emt 0:00:02]} 5. Bg2 {[%emt 0:00:02]} O-O {[%emt 0:00:02]} 6. O-O {[%emt 0:00:20]} c6 {[%emt 0:00:01]} 7. b3 {[%emt 0:00:22] A22: English Opening: 1...e5 2 Nc3 Nf6.} a5 {[%emt 0:00:04]} 8. Bb2 {[%emt 0:00:04]} Nbd7 {[%emt 0:00:02] [#]} 9. e4 $146 {[%emt 0:00:32] White is slightly better.} ({Predecessor:} 9. Qc2 Nc5 10. d4 exd4 11. Nxd4 Re8 12. h3 Qb6 13. Rad1 Bf8 14. Kh2 Be6 15. e4 {1-0 (34) Gouy,F (2185)-Mendola,D (2073) Lyon 2002}) 9... Nc5 {[%emt 0:00:12]} 10. d4 {[%emt 0:00:37]} exd4 {[%emt 0:00:07]} 11. Nxd4 {[%emt 0:00:39]} Re8 {[%emt 0:00:05]} 12. Re1 {[%emt 0:00:12]} Bf8 {[%emt 0:00:01]} 13. h3 {[%emt 0:00:49]} g6 {[%emt 0:00:51]} 14. Qc2 {[%emt 0:00:28]} Bg7 {[%emt 0:00:26]} 15. Rad1 {[%emt 0:00:02]} Qb6 {[%emt 0:00:54][%cal Oa5a4]} 16. Nf3 {[%emt 0:01:02]} Qc7 {[%emt 0:00:55]} (16... Qb4 $11) 17. a3 {[%emt 0:00:55]} (17. Ba3 $14) 17... Be6 {[%emt 0:00:52]} 18. Nd4 {[%emt 0:00:20]} Bd7 {[%emt 0:00:14]} (18... Nfd7 $14 {was preferrable.}) 19. b4 {[%emt 0:00:19]} axb4 {[%emt 0:00:01]} 20. axb4 {[%emt 0:00:01]} Na6 {[%emt 0:01:13]} 21. b5 {[%emt 0:00:18]} Nc5 {[%emt 0:00:13]} 22. Nb3 {[%emt 0:00:12]} (22. f4 $5 {[%cal Rc2f2]}) 22... Nxb3 {[%emt 0:00:32]} 23. Qxb3 {[%emt 0:00:01]} Be6 {[%emt 0:00:03]} 24. Qb4 {[%emt 0:00:29]} Nd7 {[%emt 0:00:22][%cal Bf6d7,Bd7e5,Be5c4][%mdl 32]} 25. Qxd6 {[%emt 0:00:41]} (25. Nd5 $11 cxd5 26. Bxg7) 25... Qxd6 $17 {[%emt 0:00:03]} 26. Rxd6 {[%emt 0:00:02] [#]} Ne5 $1 {[%emt 0:00:01]} 27. Bc1 {[%emt 0:01:24]} (27. bxc6 $17 {might work better.} bxc6 28. Ne2) 27... Bf8 $19 {[%emt 0:02:22][%cal Bg7f8,Bf8b4,Bb4c5][%mdl 32]} 28. Rdd1 {[%emt 0:00:12]} (28. Rd2 {keeps fighting.}) 28... Bb4 {[%emt 0:00:01]} (28... Nxc4 29. e5 $11) (28... Bxc4 29. Bf4 $17) 29. Re3 {[%emt 0:00:57]} Nxc4 {[%emt 0:00:03]} ({Weaker is} 29... Bxc4 30. bxc6 bxc6 31. f4 $17) 30. Red3 {[%emt 0:00:02]} Ne5 {[%emt 0:00:10]} 31. Re3 {[%emt 0:00:05]} Bb3 {[%emt 0:00:19]} 32. Rf1 {[%emt 0:00:32]} Bc4 {[%emt 0:00:12][%csl LRb5,LRf1]} 33. Rd1 {[%emt 0:00:17]} Bc5 {[%emt 0:00:02]} ({Inferior is} 33... cxb5 34. Nd5 Bxd5 35. exd5 $15) 34. bxc6 {[%emt 0:00:10]} bxc6 {[%emt 0:00:01]} 35. Kh2 {[%emt 0:00:26]} (35. g4 $142) 35... Ra1 {[%emt 0:00:15]} 36. Bb2 {[%emt 0:00:34]} Rxd1 {[%emt 0:00:09]} ({Not} 36... Bxe3 37. Bxa1 Bxf2 38. Nb1 $17) 37. Nxd1 {[%emt 0:00:01]} Bxe3 {[%emt 0:00:17]} 38. Nxe3 {[%emt 0:00:01]} Be2 {[%emt 0:00:02]} 39. g4 {[%emt 0:00:21]} (39. Bc3 $142) 39... Nc4 {[%emt 0:00:13]} 40. Nxc4 {[%emt 0:00:06]} Bxc4 {[%emt 0:00:01][%mdl 4096] Endgame KRB-KB} 41. Bd4 {[%emt 0:00:03]} Be6 {[%emt 0:00:09]} 42. Kg3 {[%emt 0:00:01]} Rc8 {[%emt 0:00:25] And now ...c5 would win.} 43. Bc5 {[%emt 0:00:04]} Rb8 {[%emt 0:00:02]} 44. g5 $2 {[%emt 0:00:06]} (44. Be3 {was worth a try.}) 44... Rb5 {[%emt 0:00:03]} 45. Be7 {[%emt 0:00:02]} c5 {[%emt 0:00:05][%cal Bc6c5,Bc5c4,Bc4c3,Bc3c2][%mdl 32]} 46. Kf4 {[%emt 0:00:05]} c4 {[%emt 0:00:02]} 47. Bf6 {[%emt 0:00:01]} Rb3 {[%emt 0:00:21]} 48. Bf1 {[%emt 0:00:05]} c3 {[%emt 0:00:15] [#] ( -> ...c2)} 49. Bd3 {[%emt 0:00:01]} Bxh3 {[%emt 0:00:03]} 50. Bc2 {[%emt 0:00:06]} Rb2 {[%emt 0:00:04]} 51. Bd3 {[%emt 0:00:02]} Rxf2+ {[%emt 0:00:17]} 52. Ke3 {[%emt 0:00:00]} c2 {[%emt 0:00:11]} 53. Bb2 {[%emt 0:00:02]} Rh2 {[%emt 0:00:01]} 54. Kd4 {[%emt 0:00:07]} Rg2 {[%emt 0:00:16]} 55. Kc3 {[%emt 0:00:04]} Rxg5 {[%emt 0:00:02]} 56. Kxc2 {[%emt 0:00:00]} Be6 {[%emt 0:00:04]} 57. Bf6 {[%emt 0:00:02]} Rg2+ {[%emt 0:00:03]} 58. Kc3 {[%emt 0:00:01]} h5 {[%emt 0:00:01][%cal Bh7h5,Bh5h4][%mdl 32]} 59. Kd4 {[%emt 0:00:02]} g5 {[%emt 0:00:06]} 60. Ke3 {[%emt 0:00:01]} h4 {[%emt 0:00:03] Strongly threatening ...Rg3+.} 61. Bf1 {[%emt 0:00:01]} Rg3+ {[%emt 0:00:03]} 62. Kf2 {[%emt 0:00:01]} Kh7 {[%emt 0:00:09]} 63. Bd4 {[%emt 0:00:06]} Kg6 {[%emt 0:00:03] aiming for ...Rb3.} 64. Be3 {[%emt 0:00:01]} f5 {[%emt 0:00:12]} 65. exf5+ {[%emt 0:00:20]} Bxf5 {[%emt 0:00:02] ...Be4 is the strong threat.} 66. Be2 {[%emt 0:00:00]} Be4 {[%emt 0:00:01] Black mates.} 67. Bb5 {[%emt 0:00:00]} Rg2+ {[%emt 0:00:05]} 68. Ke1 {[%emt 0:00:01]} h3 {[%emt 0:00:01] Weighted Error Value: White=0.43/Black=0.14 (very precise)} 0-1

[Event "5th Vera Menchik Memorial 2022"]
[Site "Prag"]
[Date "2022.06.05"]
[Round "6.3"]
[White "Neuman, Petr"]
[Black "Varga, David"]
[Result "1-0"]
[ECO "C44"]
[WhiteElo "2389"]
[BlackElo "2323"]
[Annotator "TA"]
[PlyCount "63"]
[EventDate "2022.06.05"]
[EventType "tourn"]
[EventCountry "CZE"]
[SourceTitle "playchess.com"]
[Source "ChessBase"]
[SourceQuality "1"]
[TimeControl "720+3"]

{[%evp 9,63,-25,0,0,142,139,140,139,141,140,125,140,132,130,188,183,161,175,159,141,240,242,235,216,233,242,262,262,310,308,441,442,395,282,420,297,493,501,486,482,580,612,572,493,488,479,551,537,579,533,1026,1009,1154,1133,1681,1487]} 1. e4 {[%emt 0:00:02]} e5 {[%emt 0:00:01]} 2. Nf3 {[%emt 0:00:02]} Nf6 {[%emt 0:00:01]} 3. d3 {[%emt 0:00:02]} d5 {[%emt 0:00:53]} 4. Nbd2 {[%emt 0:00:02]} Nc6 {[%emt 0:00:09]} 5. c3 {[%emt 0:00:06]} Bc5 {[%emt 0:01:03]} 6. b4 {[%emt 0:00:09][%cal Bb2b4,Bb4b5][%mdl 32] C44: Ponziani Opening and Scotch Gambit.} Bxf2+ {[%emt 0:00:21]} 7. Kxf2 $16 {[%emt 0:00:03]} dxe4 {[%emt 0:00:01]} 8. dxe4 {[%emt 0:00:03] White is clearly better.} Nxe4+ {[%emt 0:00:01]} 9. Kg1 {[%emt 0:00:28]} Nxc3 {[%emt 0:00:02]} 10. Qb3 {[%emt 0:01:19]} Nd5 {[%emt 0:00:29]} 11. b5 $36 {[%emt 0:00:15][%mdl 2048] [#] Keeping Black busy.} Nd4 $146 {[%emt 0:00:48]} (11... Nce7 $16 {was necessary.} 12. Ba3 (12. Nxe5 Qd6 $16) 12... f6) ({Predecessor:} 11... Nce7 12. Bc4 Be6 13. Ba3 Nf4 14. Bxe6 Nxe6 15. Rd1 Nd4 16. Qa4 Ne2+ 17. Kf2 Nc3 {1-0 (57) Budnikov,O (2408)-Shton,R (2079) Mukachevo 2017}) 12. Nxd4 $18 {[%emt 0:00:17]} exd4 {[%emt 0:00:01]} 13. Nf3 {[%emt 0:00:19] Black must now prevent Bc4.} O-O {[%emt 0:01:19]} 14. Bb2 {[%emt 0:00:22]} Bg4 {[%emt 0:01:07]} (14... a6 $16 15. Bxd4 (15. Nxd4 axb5 16. Bxb5 c6 $16) 15... axb5) 15. Nxd4 {[%emt 0:00:06]} Qg5 {[%emt 0:00:59]} 16. Qg3 {[%emt 0:01:51] h3 is the strong threat.} Qd2 {[%emt 0:00:18]} 17. Qf2 {[%emt 0:00:04]} Qh6 {[%emt 0:01:08]} 18. h3 {[%emt 0:00:18]} Be6 {[%emt 0:01:01]} 19. Re1 {[%emt 0:00:07]} a6 {[%emt 0:00:21]} (19... Bd7 {keeps fighting.} 20. Qf3 c6 21. bxc6 bxc6) 20. bxa6 {[%emt 0:00:04]} bxa6 {[%emt 0:00:05]} 21. Kh2 {[%emt 0:00:27]} Rab8 {[%emt 0:00:08]} (21... Bd7 {was worth a try.} 22. Bc4 Qd6+ 23. g3 c6) 22. Ba1 {[%emt 0:00:02]} c5 $2 {[%emt 0:00:34]} (22... Bd7 {might work better.} 23. Bc4 Qd6+ 24. Qg3 Qxg3+ 25. Kxg3 Nb6) 23. Nxe6 {[%emt 0:00:56] White is clearly winning.} fxe6 {[%emt 0:00:02]} 24. Qg3 {[%emt 0:00:03][%cal Oe1e6] [#] Hoping for Rxe6!} Nf4 {[%emt 0:01:27]} 25. Be5 {[%emt 0:00:18]} Nh5 {[%emt 0:00:01]} 26. Qe3 {[%emt 0:00:10]} Qxe3 {[%emt 0:00:09]} 27. Rxe3 {[%emt 0:00:01]} Rb1 {[%emt 0:00:02]} 28. Bc4 {[%emt 0:00:14]} Rxh1+ {[%emt 0:00:26]} 29. Kxh1 {[%emt 0:00:02]} Re8 {[%emt 0:00:15]} 30. g4 {[%emt 0:00:06]} Nf6 {[%emt 0:00:06]} 31. Bxf6 {[%emt 0:00:02]} gxf6 {[%emt 0:00:01]} 32. Rxe6 {[%emt 0:00:01] Weighted Error Value: White=0.19 (very precise) /Black=0.61} 1-0

[Event "5th Vera Menchik Memorial 2022"]
[Site "Prag"]
[Date "2022.06.05"]
[Round "6.4"]
[White "Mladek, Richard"]
[Black "Jirovsky, Pavel"]
[Result "1-0"]
[ECO "D51"]
[WhiteElo "2361"]
[BlackElo "2296"]
[Annotator "TA"]
[PlyCount "79"]
[EventDate "2022.06.05"]
[EventType "tourn"]
[EventCountry "CZE"]
[SourceTitle "playchess.com"]
[Source "ChessBase"]
[SourceQuality "1"]
[TimeControl "720+3"]

{[%evp 12,79,34,31,39,19,75,78,127,118,121,123,141,76,154,146,145,111,102,93,261,87,229,230,405,372,363,363,349,144,141,149,149,90,139,93,113,92,107,100,115,91,404,397,429,427,422,418,408,427,422,418,418,408,410,393,416,399,564,557,556,522,29992,1605,1425,770,777,757,842,824]} 1. d4 {[%emt 0:00:00]} d5 {[%emt 0:00:10]} 2. c4 {[%emt 0:00:01]} e6 {[%emt 0:00:04]} 3. Nc3 {[%emt 0:00:01]} Nf6 {[%emt 0:00:03]} 4. cxd5 {[%emt 0:00:02]} exd5 {[%emt 0:00:02]} 5. Bg5 {[%emt 0:00:01]} Nbd7 {[%emt 0:00:04]} 6. e3 {[%emt 0:00:04]} Bb4 {[%emt 0:00:11]} 7. Bd3 {[%emt 0:00:20]} c5 {[%emt 0:00:02] D51: Queen's Gambit Declined: 4 Bg5 Nbd7 sidelines.} 8. Rc1 {[%emt 0:01:13]} Qa5 {[%emt 0:01:01]} (8... c4 $11 9. Bb1 (9. Bf5 O-O $11) 9... h6) 9. dxc5 {[%emt 0:00:34]} Qxa2 {[%emt 0:00:27]} (9... Bxc3+ $142 10. Rxc3 Nxc5) 10. Nge2 $1 $16 {[%emt 0:00:22]} (10. Qd2 Qa5 $11) 10... Qa5 {[%emt 0:00:42]} 11. O-O {[%emt 0:00:05]} O-O {[%emt 0:00:25] [#]} 12. Nf4 $146 {[%emt 0:00:20]} ({White should play} 12. Bh4) ({Predecessor:} 12. Nb5 a6 13. Nbd4 Qd8 14. c6 Ne5 15. c7 Qd6 16. Nf5 Qb6 17. Bb1 Nc4 18. Nf4 {1-0 (34) Vitiugov,N (2550)-Orlov,V (2450) St Petersburg 2006}) 12... h6 {[%emt 0:03:31]} ({Black should try} 12... Bxc3 13. Rxc3 h6 14. Bxf6 Nxf6) 13. Bxf6 {[%emt 0:03:54] 0x0.001aa0d3f747dp-1022s more active pieces. The black rooks are badly placed.} Nxf6 {[%emt 0:00:14]} 14. Ncxd5 {[%emt 0:00:02]} Nxd5 {[%emt 0:00:09]} 15. Nxd5 {[%emt 0:00:01]} Be6 $2 {[%emt 0:00:29]} (15... Bxc5 $16 16. Bb1 Bd6) 16. Qh5 $2 {[%emt 0:00:33]} (16. Ne7+ $18 {and the rest is easy.} Kh8 17. Qf3) 16... Rfd8 {[%emt 0:01:03] [#]} (16... Bxd5 $16 {keeps fighting.} 17. Qxd5 Rad8) 17. Nf4 $1 $18 {[%emt 0:00:02]} Bd7 $2 {[%emt 0:01:34]} (17... Re8 18. Rfd1 Qa2 19. Nxe6 Qxe6) 18. Bc4 {[%emt 0:00:26]} Be8 {[%emt 0:00:02]} 19. Qe5 {[%emt 0:00:13] Threatens to win with Nh5.} Kh8 {[%emt 0:00:53]} 20. Nh5 {[%emt 0:00:04]} (20. Bd3 $18) 20... f6 $16 {[%emt 0:00:02] [#]} 21. Nxf6 {[%emt 0:00:09][%cal Oe5f5][%mdl 512] Qf5! is the strong threat.} Qxc5 {[%emt 0:00:02]} 22. Qe6 $40 {[%emt 0:00:33][%mdl 128] White has strong attack.} (22. Bd5 $142 Qd6 23. Qxd6 Bxd6 24. Nxe8 (24. Bxb7 gxf6 25. Bxa8 Rxa8 $14) 24... Rxe8 25. Bxb7) 22... Qf8 {[%emt 0:00:31]} (22... Bc6 $142) 23. Nd5 {[%emt 0:00:19]} (23. Nxe8 $142 Qxe8 24. Qxe8+ Rxe8 25. Bd5) 23... Bd6 {[%emt 0:00:08]} 24. Bd3 {[%emt 0:00:46]} Bf7 {[%emt 0:01:26]} 25. Qe4 {[%emt 0:00:04][%csl Gd3][%cal Re4h7]} Bg8 {[%emt 0:00:00][%cal Od6h2] Prevents Qh7+.} 26. Nc7 {[%emt 0:00:28]} Rab8 {[%emt 0:00:00][%mdl 8192]} (26... Bxc7 $16 27. Rxc7 Qd6) 27. Ne6 $18 {[%emt 0:00:07][%cal Bc7e6,Be6f4,Bf4g6][%mdl 32]} Bxh2+ {[%emt 0:00:00]} 28. Kxh2 {[%emt 0:01:09]} Qd6+ {[%emt 0:00:01]} 29. Nf4 {[%emt 0:00:01]} g5 {[%emt 0:00:02]} 30. Qd4+ {[%emt 0:00:03]} Qxd4 {[%emt 0:00:03]} 31. Ng6+ {[%emt 0:00:01]} ({Worse is} 31. exd4 gxf4 32. Rc7 Rxd4 $11) 31... Kg7 {[%emt 0:00:02]} 32. exd4 {[%emt 0:00:01]} Rxd4 {[%emt 0:00:03]} 33. Rc7+ {[%emt 0:00:01]} Kf6 {[%emt 0:00:04]} 34. Bb1 {[%emt 0:00:08]} Re8 {[%emt 0:00:11]} (34... Bf7 $142 35. f4 Bxg6) 35. f4 {[%emt 0:00:10] Strongly threatening fxg5+.} gxf4 {[%emt 0:00:07]} 36. Nxf4 {[%emt 0:01:33] aiming for Ne2+.} Kg5 {[%emt 0:00:03] [#]} 37. Rg7+ {[%emt 0:00:00]} (37. Ne6+ $142 $1 {[%mdl 512]} Rxe6 38. Rg7+ Rg6 39. Rxg6+ Kh4 40. Rxg8 Rd5 41. g3+ Kh5 42. Bg6+ Kg4 43. Bf7+ Rg5 44. Rf4#) 37... Kf6 {[%emt 0:00:03] White is clearly winning.} 38. Rxg8 {[%emt 0:00:00]} Rxg8 39. Ne2+ {[%emt 0:00:09]} Ke5 {[%emt 0:00:06]} 40. Rf5+ {[%emt 0:00:03] Weighted Error Value: White=0.27 (precise) /Black=0.77} 1-0